[Event "South Island Championships 2023"]
[Site "Oamaru, New Zealand"]
[Date "2023.09.27"]
[Round "2.5"]
[White "Ha, Timothy Huy Minh"]
[Black "Liu, William Rui"]
[Result "0-1"]
[TimeControl "90 + 30"]
[WhiteFideId "12417246"]
[BlackFideId "4313593"]
[WhiteElo "1843"]
[BlackElo "2094"]

1. Nf3 {[%clk 01:30:55]} {[%emt 00:00:03]} d5 {[%clk 01:30:47]} {[%emt
00:00:14]} 2. c4 {[%clk 01:31:12]} {[%emt 00:00:13]} c6 {[%clk 01:31:00]}
{[%emt 00:00:16]} 3. g3 {[%clk 01:31:11]} {[%emt 00:00:31]} Nf6 {[%clk
01:31:10]} {[%emt 00:00:21]} 4. Bg2 {[%clk 01:31:21]} {[%emt 00:00:20]} Nbd7
{[%clk 01:31:22]} {[%emt 00:00:18]} 5. d4 {[%clk 01:29:50]} {[%emt 00:02:01]}
e6 {[%clk 01:31:07]} {[%emt 00:00:45]} 6. O-O {[%clk 01:29:51]} {[%emt
00:00:29]} Be7 {[%clk 01:30:08]} {[%emt 00:01:29]} 7. Nc3 {[%clk 01:28:37]}
{[%emt 00:01:44]} O-O {[%clk 01:29:49]} {[%emt 00:00:49]} 8. cxd5 {[%clk
01:27:52]} {[%emt 00:01:15]} exd5 {[%clk 01:29:55]} {[%emt 00:00:24]} 9. Qc2
{[%clk 01:26:09]} {[%emt 00:02:12]} Re8 {[%clk 01:29:10]} {[%emt 00:01:16]} 10.
Bf4 {[%clk 01:24:17]} {[%emt 00:02:21]} Nf8 {[%clk 01:27:33]} {[%emt 00:02:08]}
11. Rad1 {[%clk 01:22:26]} {[%emt 00:02:21]} Ng6 {[%clk 01:26:38]} {[%emt
00:01:26]} 12. Bc1 {[%clk 01:22:49]} {[%emt 00:00:06]} Bb4 {[%clk 01:23:55]}
{[%emt 00:03:14]} 13. a3 {[%clk 01:18:12]} {[%emt 00:05:08]} Bxc3 {[%clk
01:24:16]} {[%emt 00:00:09]} 14. bxc3 {[%clk 01:18:37]} {[%emt 00:00:04]} Ne4
{[%clk 01:24:25]} {[%emt 00:00:20]} 15. Nd2 {[%clk 01:16:43]} {[%emt 00:02:24]}
Bf5 {[%clk 01:22:18]} {[%emt 00:02:39]} 16. Nxe4 {[%clk 01:16:35]} {[%emt
00:00:37]} Bxe4 {[%clk 01:22:43]} {[%emt 00:00:06]} 17. Bxe4 {[%clk 01:16:34]}
{[%emt 00:00:30]} Rxe4 {[%clk 01:23:08]} {[%emt 00:00:05]} 18. f3 {[%clk
01:16:39]} {[%emt 00:00:25]} Re6 {[%clk 01:21:59]} {[%emt 00:01:39]} 19. e4
{[%clk 01:15:22]} {[%emt 00:01:47]} dxe4 {[%clk 01:20:55]} {[%emt 00:01:34]} 20.
fxe4 {[%clk 01:15:45]} {[%emt 00:00:07]} Qe7 {[%clk 01:20:52]} {[%emt
00:00:33]} 21. e5 {[%clk 01:14:02]} {[%emt 00:02:11]} Rd8 {[%clk 01:19:53]}
{[%emt 00:01:29]} 22. Rf2 {[%clk 01:12:39]} {[%emt 00:01:54]} c5 {[%clk
01:17:46]} {[%emt 00:02:38]} 23. Qa4 {[%clk 01:05:28]} {[%emt 00:07:40]} Ra6
{[%clk 01:14:26]} {[%emt 00:03:52]} 24. Qb3 {[%clk 01:05:18]} {[%emt 00:00:38]}
Rb6 {[%clk 01:14:30]} {[%emt 00:00:27]} 25. Qc2 {[%clk 01:03:53]} {[%emt
00:01:53]} cxd4 {[%clk 01:11:36]} {[%emt 00:03:26]} 26. cxd4 {[%clk 01:04:03]}
{[%emt 00:00:19]} Rc6 {[%clk 01:11:40]} {[%emt 00:00:28]} 27. Qb3 {[%clk
01:01:26]} {[%emt 00:03:06]} Rb6 {[%clk 01:09:04]} {[%emt 00:03:06]} 28. Qc2
{[%clk 01:00:14]} {[%emt 00:01:41]} Rc6 {[%clk 01:08:46]} {[%emt 00:00:48]} 29.
Qb3 {[%clk 01:00:37]} {[%emt 00:00:07]} Rb6 {[%clk 00:53:01]} {[%emt 00:16:16]}
30. Qc2 {[%clk 01:00:58]} {[%emt 00:00:08]} Qd7 {[%clk 00:48:09]} {[%emt
00:05:22]} 31. Rdd2 {[%emt 00:08:09]} Rc8 {[%clk 00:47:13]} 32. Qd1 {[%clk
00:53:59]} {[%emt 00:01:17]} Rb1 {[%clk 00:38:25]} {[%emt 00:09:17]} 33. Rc2
{[%clk 00:54:14]} {[%emt 00:00:15]} Nxe5 {[%clk 00:38:07]} {[%emt 00:00:49]} 34.
Rxc8+ {[%clk 00:51:02]} {[%emt 00:03:42]} Qxc8 {[%clk 00:38:28]} {[%emt
00:00:10]} 35. Rc2 {[%clk 00:51:25]} {[%emt 00:00:06]} Qd7 {[%clk 00:38:09]}
{[%emt 00:00:46]} 36. d5 {[%clk 00:51:07]} {[%emt 00:00:51]} h6 {[%clk
00:36:57]} {[%emt 00:01:41]} 37. Kg2 {[%clk 00:49:30]} {[%emt 00:02:05]} Rb5
{[%clk 00:36:18]} {[%emt 00:01:12]} 38. d6 {[%clk 00:44:47]} {[%emt 00:05:13]}
Rb6 {[%clk 00:28:49]} {[%emt 00:07:59]} 39. Rc7 {[%clk 00:42:29]} {[%emt
00:02:46]} Qxd6 {[%clk 00:29:08]} {[%emt 00:00:13]} 40. Qxd6 {[%clk 00:42:48]}
{[%emt 00:00:11]} Rxd6 {[%clk 00:29:34]} {[%emt 00:00:04]} 41. Rxb7 {[%clk
00:43:07]} {[%emt 00:00:11]} Rd7 {[%clk 00:28:13]} {[%emt 00:01:51]} 42. Rb3
{[%clk 00:40:27]} {[%emt 00:03:07]} f6 {[%clk 00:27:18]} {[%emt 00:01:28]} 43.
Be3 {[%clk 00:39:01]} {[%emt 00:01:55]} Kf7 {[%clk 00:27:13]} {[%emt 00:00:36]}
44. Bc5 {[%clk 00:34:08]} {[%emt 00:05:22]} g5 {[%clk 00:26:08]} {[%emt
00:01:36]} 45. h3 {[%clk 00:32:53]} {[%emt 00:01:43]} h5 {[%clk 00:25:49]}
{[%emt 00:00:50]} 46. Rb8 {[%clk 00:31:29]} {[%emt 00:01:54]} Rc7 {[%clk
00:23:45]} {[%emt 00:02:35]} 47. Bb4 {[%clk 00:28:19]} {[%emt 00:03:40]} Ke6
{[%clk 00:23:09]} {[%emt 00:01:06]} 48. Rd8 {[%clk 00:26:23]} {[%emt 00:02:25]}
Kf5 {[%clk 00:23:00]} {[%emt 00:00:39]} 49. Rd6 {[%clk 00:23:05]} {[%emt
00:03:45]} Rc6 {[%clk 00:22:29]} {[%emt 00:01:05]} 50. Rd1 {[%clk 00:20:28]}
{[%emt 00:03:06]} Rc2+ {[%clk 00:22:40]} {[%emt 00:00:21]} 51. Rd2 {[%clk
00:18:42]} {[%emt 00:02:16]} Rxd2+ {[%clk 00:22:55]} {[%emt 00:00:14]} 52. Bxd2
{[%clk 00:19:07]} {[%emt 00:00:04]} Ke4 {[%clk 00:23:17]} {[%emt 00:00:08]} 53.
Kf2 {[%clk 00:19:16]} {[%emt 00:00:21]} Nc4 {[%clk 00:23:05]} {[%emt 00:00:43]}
54. Bb4 {[%clk 00:19:38]} {[%emt 00:00:08]} f5 {[%clk 00:23:10]} {[%emt
00:00:26]} 55. g4 {[%clk 00:19:03]} {[%emt 00:01:03]} hxg4 {[%clk 00:11:25]}
{[%emt 00:12:16]} 56. hxg4 {[%clk 00:19:21]} {[%emt 00:00:10]} fxg4 {[%clk
00:09:26]} {[%emt 00:02:30]} 57. Kg3 {[%clk 00:19:31]} {[%emt 00:00:19]} Kf5
{[%clk 00:09:51]} {[%emt 00:00:07]} 58. Bc5 {[%clk 00:18:47]} {[%emt 00:01:14]}
a6 {[%clk 00:10:00]} {[%emt 00:00:22]} 59. Be7 {[%clk 00:18:54]} {[%emt
00:00:20]} Nd2 {[%clk 00:10:12]} {[%emt 00:00:20]} 60. Bd8 {[%clk 00:18:35]}
{[%emt 00:00:49]} Ne4+ {[%clk 00:10:20]} {[%emt 00:00:22]} 61. Kg2 {[%clk
00:18:51]} {[%emt 00:00:11]} Nd6 {[%clk 00:08:40]} {[%emt 00:02:12]} 62. Kg3
{[%clk 00:18:36]} {[%emt 00:00:44]} Ne4+ {[%clk 00:07:54]} {[%emt 00:01:18]} 63.
Kg2 {[%clk 00:18:59]} {[%emt 00:00:07]} Nc3 {[%clk 00:06:10]} {[%emt 00:02:14]}
64. Kg3 {[%clk 00:19:14]} {[%emt 00:00:14]} Nd5 {[%clk 00:06:34]} {[%emt
00:00:07]} 65. a4 {[%clk 00:19:16]} {[%emt 00:00:28]} Nc3 {[%clk 00:06:49]}
{[%emt 00:00:15]} 66. a5 {[%clk 00:19:35]} {[%emt 00:00:10]} Nd5 {[%clk
00:07:14]} {[%emt 00:00:06]} 67. Bb6 {[%clk 00:19:27]} {[%emt 00:00:37]} Nf4
{[%clk 00:06:38]} {[%emt 00:01:06]} 68. Bc5 {[%clk 00:19:15]} {[%emt 00:00:39]}
Nh5+ {[%clk 00:06:54]} {[%emt 00:00:18]} 69. Kg2 {[%clk 00:19:34]} {[%emt
00:00:10]} Ke4 {[%clk 00:06:25]} {[%emt 00:01:00]} 70. Be7 {[%clk 00:19:30]}
{[%emt 00:00:32]} g3 {[%clk 00:06:31]} {[%emt 00:00:26]} 71. Bxg5 {[%clk
00:19:16]} {[%emt 00:00:43]} Kf5 {[%clk 00:06:58]} {[%emt 00:00:04]} 72. Bd8
{[%clk 00:17:25]} {[%emt 00:02:20]} Kg4 {[%clk 00:07:22]} {[%emt 00:00:06]} 73.
Bb6 {[%clk 00:14:03]} {[%emt 00:03:52]} Nf4+ {[%clk 00:07:45]} {[%emt
00:00:08]} 74. Kf1 {[%clk 00:14:26]} {[%emt 00:00:06]} Kf3 {[%clk 00:07:35]}
{[%emt 00:00:41]} 75. Ke1 {[%clk 00:14:17]} {[%emt 00:00:39]} Nd5 {[%clk
00:06:41]} {[%emt 00:01:24]} 76. Kf1 {[%clk 00:14:14]} {[%emt 00:00:32]} g2+
{[%clk 00:02:02]} {[%emt 00:05:09]} 77. Kg1 {[%clk 00:14:13]} {[%emt 00:00:31]}
Kg3 {[%clk 00:02:21]} {[%emt 00:00:10]} 78. Bc5 {[%clk 00:13:15]} {[%emt
00:01:29]} Nc3 {[%clk 00:02:29]} {[%emt 00:00:23]} 0-1

[Event "South Island Championships 2023"]
[Site "Oamaru, New Zealand"]
[Date "2023.09.27"]
[Round "2.3"]
[White "Wang, Justin Zhide"]
[Black "Stark, John"]
[Result "0-1"]
[TimeControl "90 + 30"]
[WhiteFideId "4312830"]
[BlackFideId "4300963"]
[WhiteElo "1849"]
[BlackElo "2204"]

1. e4 {[%clk 01:30:59]} c6 {[%clk 01:30:59]} {[%emt 00:00:01]} 2. d4 {[%clk
01:31:24]} {[%emt 00:00:08]} d5 {[%clk 01:31:18]} {[%emt 00:00:06]} 3. Nc3
{[%clk 01:31:53]} {[%emt 00:00:04]} dxe4 {[%clk 01:31:42]} {[%emt 00:00:05]} 4.
Nxe4 {[%clk 01:32:15]} {[%emt 00:00:08]} Nf6 {[%clk 01:32:09]} {[%emt
00:00:04]} 5. Nxf6+ {[%clk 01:32:37]} {[%emt 00:00:07]} exf6 {[%clk 01:32:30]}
{[%emt 00:00:09]} 6. c3 {[%clk 01:33:04]} {[%emt 00:00:03]} Bd6 {[%clk
01:32:32]} {[%emt 00:00:28]} 7. Bd3 {[%clk 01:33:30]} {[%emt 00:00:04]} O-O
{[%clk 01:32:55]} {[%emt 00:00:07]} 8. Qc2 {[%clk 01:33:52]} {[%emt 00:00:08]}
h5 {[%clk 01:33:20]} {[%emt 00:00:05]} 9. Ne2 {[%clk 01:34:17]} {[%emt
00:00:05]} Re8 {[%clk 01:33:34]} {[%emt 00:00:16]} 10. Be3 {[%clk 01:33:59]}
{[%emt 00:00:48]} Nd7 {[%clk 01:33:51]} {[%emt 00:00:13]} 11. O-O-O {[%clk
01:34:23]} {[%emt 00:00:06]} Nf8 {[%clk 01:34:06]} {[%emt 00:00:15]} 12. c4
{[%clk 01:34:48]} {[%emt 00:00:06]} Be6 {[%clk 01:26:39]} {[%emt 00:07:56]} 13.
Kb1 {[%clk 01:31:18]} {[%emt 00:04:00]} Rc8 {[%clk 01:25:39]} {[%emt 00:01:29]}
14. Nc3 {[%clk 01:29:28]} {[%emt 00:02:22]} a6 {[%emt 00:17:18]} 15. Ne4 {[%clk
01:20:34]} Be7 {[%clk 01:17:37]} {[%emt 00:01:05]} 16. Ng3 {[%clk 01:18:56]}
{[%emt 00:02:09]} g6 {[%clk 01:17:49]} {[%emt 00:00:18]} 17. Bh6 {[%clk
01:11:41]} {[%emt 00:07:45]} f5 {[%clk 01:15:28]} {[%emt 00:02:51]} 18. Rhe1
{[%clk 00:47:16]} {[%emt 00:24:54]} Bb4 {[%clk 01:02:46]} {[%emt 00:13:13]} 19.
Re2 {[%clk 00:40:30]} {[%emt 00:07:17]} h4 {[%clk 00:50:48]} {[%emt 00:12:27]}
20. Nf1 {[%clk 00:21:47]} {[%emt 00:19:13]} Qxd4 {[%clk 00:50:37]} {[%emt
00:00:41]} 21. a3 {[%clk 00:20:14]} {[%emt 00:02:04]} Qh8 {[%clk 00:49:45]}
{[%emt 00:01:20]} 22. Bf4 {[%clk 00:17:00]} {[%emt 00:03:44]} Be7 {[%clk
00:49:37]} {[%emt 00:00:38]} 23. Be5 {[%clk 00:15:30]} {[%emt 00:02:01]} Bf6
{[%clk 00:49:57]} {[%emt 00:00:10]} 24. Bxf6 {[%clk 00:14:03]} {[%emt
00:01:57]} Qxf6 {[%clk 00:50:17]} {[%emt 00:00:09]} 25. Nd2 {[%clk 00:14:28]}
{[%emt 00:00:06]} Bd7 {[%clk 00:46:21]} {[%emt 00:04:25]} 26. Nf3 {[%clk
00:13:14]} {[%emt 00:01:44]} Rxe2 {[%clk 00:45:11]} {[%emt 00:01:40]} 27. Bxe2
{[%clk 00:13:33]} {[%emt 00:00:12]} c5 {[%clk 00:42:14]} {[%emt 00:03:26]} 28.
Qd2 {[%clk 00:07:10]} {[%emt 00:06:54]} Re8 {[%clk 00:38:19]} {[%emt 00:04:25]}
29. Bd3 {[%clk 00:06:16]} {[%emt 00:01:24]} Bc6 {[%clk 00:38:23]} {[%emt
00:00:26]} 30. Qf4 {[%clk 00:05:43]} {[%emt 00:01:03]} Bxf3 {[%clk 00:37:15]}
{[%emt 00:01:38]} 31. Qxf3 {[%clk 00:06:05]} {[%emt 00:00:08]} Re6 {[%clk
00:36:47]} {[%emt 00:00:58]} 32. Bc2 {[%clk 00:05:01]} {[%emt 00:01:35]} Rb6
{[%clk 00:35:33]} {[%emt 00:01:43]} 33. b3 {[%clk 00:05:24]} {[%emt 00:00:07]}
Ne6 {[%clk 00:35:41]} {[%emt 00:00:21]} 34. Qd3 {[%clk 00:03:06]} {[%emt
00:02:48]} Nd4 {[%clk 00:34:29]} {[%emt 00:01:42]} 35. Qc3 {[%clk 00:02:28]}
{[%emt 00:01:08]} Re6 {[%clk 00:32:16]} {[%emt 00:02:44]} 36. Kb2 {[%clk
00:01:37]} {[%emt 00:01:21]} Re2 {[%clk 00:32:02]} {[%emt 00:00:43]} 37. Rc1
{[%clk 00:01:18]} {[%emt 00:00:50]} Rxf2 {[%clk 00:32:19]} {[%emt 00:00:12]} 38.
g3 {[%clk 00:00:36]} {[%emt 00:01:13]} h3 {[%clk 00:32:42]} {[%emt 00:00:06]}
39. Kb1 {[%clk 00:00:47]} {[%emt 00:00:20]} Rxh2 {[%clk 00:32:02]} {[%emt
00:01:08]} 40. Qe3 {[%clk 00:00:35]} {[%emt 00:00:44]} Rxc2 {[%clk 00:31:18]}
{[%emt 00:01:13]} 41. Rxc2 {[%clk 00:01:00]} {[%emt 00:00:06]} Nxc2 {[%clk
00:31:39]} {[%emt 00:00:09]} 0-1

[Event "South Island Championships 2023"]
[Site "Oamaru, New Zealand"]
[Date "2023.09.27"]
[Round "2.2"]
[White "Ong, Rommel"]
[Black "McNabb, Matthew D"]
[Result "1/2-1/2"]
[TimeControl "90 + 30"]
[WhiteFideId "5259630"]
[BlackFideId "4300823"]
[WhiteElo "1852"]
[BlackElo "2236"]

1. e4 {[%clk 01:30:57]} {[%emt 00:00:03]} c5 {[%clk 01:30:58]} {[%emt
00:00:03]} 2. Nf3 {[%clk 01:31:21]} {[%emt 00:00:06]} d6 {[%clk 01:31:25]}
{[%emt 00:00:03]} 3. d4 {[%clk 01:31:31]} {[%emt 00:00:19]} cxd4 {[%clk
01:31:53]} {[%emt 00:00:03]} 4. Nxd4 {[%clk 01:31:58]} {[%emt 00:00:04]} Nf6
{[%clk 01:32:19]} {[%emt 00:00:03]} 5. Nc3 {[%clk 01:32:22]} {[%emt 00:00:05]}
a6 {[%clk 01:32:48]} {[%emt 00:00:02]} 6. Bg5 {[%clk 01:31:27]} {[%emt
00:01:24]} Nbd7 {[%clk 01:33:12]} {[%emt 00:00:06]} 7. Bc4 {[%clk 01:25:12]}
{[%emt 00:06:45]} b5 {[%clk 01:25:45]} {[%emt 00:07:58]} 8. Bb3 {[%clk
01:10:17]} {[%emt 00:15:26]} Bb7 {[%clk 01:25:23]} {[%emt 00:00:51]} 9. f3
{[%clk 01:03:02]} {[%emt 00:07:44]} Rc8 {[%clk 01:23:40]} {[%emt 00:02:13]} 10.
a4 {[%clk 00:58:52]} {[%emt 00:04:41]} b4 {[%clk 01:21:59]} {[%emt 00:02:11]}
11. Nd5 {[%clk 00:58:45]} {[%emt 00:00:37]} a5 {[%clk 01:13:23]} {[%emt
00:09:06]} 12. O-O {[%clk 00:57:59]} {[%emt 00:01:15]} Nc5 {[%clk 01:08:58]}
{[%emt 00:04:56]} 13. Bc4 {[%clk 00:55:50]} {[%emt 00:02:39]} Nfd7 {[%clk
00:57:01]} {[%emt 00:12:26]} 14. Bb5 {[%clk 00:54:04]} {[%emt 00:02:17]} Ne6
{[%clk 00:52:49]} {[%emt 00:04:43]} 15. Be3 {[%clk 00:50:31]} {[%emt 00:04:02]}
Nxd4 {[%clk 00:52:44]} {[%emt 00:00:36]} 16. Bxd4 {[%clk 00:49:07]} {[%emt
00:01:53]} Bc6 {[%clk 00:52:41]} {[%emt 00:00:33]} 17. Qe2 {[%clk 00:48:00]}
{[%emt 00:01:37]} e6 {[%clk 00:38:42]} {[%emt 00:14:29]} 18. Bxc6 {[%clk
00:48:18]} {[%emt 00:00:12]} Rxc6 {[%clk 00:39:00]} {[%emt 00:00:12]} 19. Bf2
{[%clk 00:48:08]} {[%emt 00:00:40]} Rc8 {[%clk 00:36:55]} {[%emt 00:02:35]} 20.
Ne3 {[%clk 00:46:47]} {[%emt 00:01:51]} Be7 {[%clk 00:37:07]} {[%emt 00:00:18]}
21. Rad1 {[%clk 00:47:01]} {[%emt 00:00:16]} O-O {[%clk 00:35:57]} {[%emt
00:01:41]} 22. Nc4 {[%clk 00:46:27]} {[%emt 00:01:03]} Rc6 {[%clk 00:35:51]}
{[%emt 00:00:36]} 23. b3 {[%clk 00:46:43]} {[%emt 00:00:15]} Qc7 {[%clk
00:31:01]} {[%emt 00:05:20]} 24. Bg3 {[%clk 00:46:46]} {[%emt 00:00:26]} Nc5
{[%clk 00:22:05]} {[%emt 00:09:26]} 25. Ne3 {[%clk 00:42:18]} {[%emt 00:04:59]}
Rd8 {[%clk 00:21:38]} {[%emt 00:00:56]} 26. Rd4 {[%clk 00:41:21]} {[%emt
00:01:26]} Bf6 {[%clk 00:21:06]} {[%emt 00:01:03]} 27. Rc4 {[%clk 00:41:46]}
{[%emt 00:00:05]} Nb7 {[%clk 00:11:59]} {[%emt 00:09:38]} 28. Rd1 {[%clk
00:41:22]} {[%emt 00:00:54]} Rxc4 {[%clk 00:09:52]} {[%emt 00:02:37]} 29. Nxc4
{[%clk 00:41:38]} {[%emt 00:00:13]} Be7 {[%clk 00:08:07]} {[%emt 00:02:16]} 30.
Ne3 {[%clk 00:36:47]} {[%emt 00:05:21]} Qc6 {[%clk 00:08:14]} {[%emt 00:00:22]}
31. h3 {[%clk 00:33:20]} {[%emt 00:03:57]} Kf8 {[%clk 00:06:26]} {[%emt
00:02:18]} 32. Qd2 {[%clk 00:32:49]} {[%emt 00:01:01]} h6 {[%clk 00:06:20]}
{[%emt 00:00:36]} 33. Nc4 {[%clk 00:32:32]} {[%emt 00:00:46]} d5 {[%clk
00:03:35]} {[%emt 00:03:16]} 34. Ne5 {[%clk 00:32:43]} {[%emt 00:00:18]} Qb6+
{[%clk 00:03:44]} {[%emt 00:00:22]} 35. Kh2 {[%clk 00:30:53]} {[%emt 00:02:20]}
Bg5 {[%clk 00:02:51]} {[%emt 00:01:23]} 36. f4 {[%clk 00:29:30]} {[%emt
00:01:53]} Bf6 {[%clk 00:03:14]} {[%emt 00:00:07]} 37. exd5 {[%clk 00:29:23]}
{[%emt 00:00:38]} Bxe5 {[%clk 00:03:16]} {[%emt 00:00:27]} 38. fxe5 {[%clk
00:29:51]} {[%emt 00:00:02]} Rxd5 {[%clk 00:03:39]} {[%emt 00:00:07]} 39. Qe2
{[%clk 00:29:56]} {[%emt 00:00:25]} Qd8 {[%clk 00:03:41]} {[%emt 00:00:28]} 40.
Rxd5 {[%clk 00:30:08]} {[%emt 00:00:18]} Qxd5 {[%clk 00:04:09]} {[%emt
00:00:02]} 41. Qa6 {[%clk 00:30:31]} {[%emt 00:00:07]} Kg8 {[%clk 00:04:32]}
{[%emt 00:00:07]} 42. Qa8+ {[%clk 00:30:44]} {[%emt 00:00:18]} Kh7 {[%clk
00:04:52]} {[%emt 00:00:10]} 43. Qe8 {[%clk 00:29:32]} {[%emt 00:01:41]} Kg6
{[%clk 00:05:00]} {[%emt 00:00:22]} 44. h4 {[%clk 00:29:53]} {[%emt 00:00:09]}
h5 {[%clk 00:05:24]} {[%emt 00:00:06]} 45. Qe7 {[%clk 00:30:15]} {[%emt
00:00:09]} Nc5 {[%clk 00:04:33]} {[%emt 00:01:21]} 46. Qg5+ {[%clk 00:30:29]}
{[%emt 00:00:16]} Kh7 {[%clk 00:05:01]} {[%emt 00:00:02]} 47. Qxh5+ {[%clk
00:30:37]} {[%emt 00:00:22]} Kg8 {[%clk 00:05:30]} 48. Qg4 {[%clk 00:25:08]}
{[%emt 00:05:57]} Qd2 {[%clk 00:05:55]} {[%emt 00:00:06]} 49. Qc4 {[%clk
00:25:15]} {[%emt 00:00:23]} Qe3 {[%clk 00:05:41]} {[%emt 00:00:44]} 50. Qf4
{[%clk 00:24:03]} {[%emt 00:01:42]} Qc3 {[%clk 00:05:46]} {[%emt 00:00:25]} 51.
Qf3 {[%clk 00:19:18]} {[%emt 00:05:15]} Qxc2 {[%clk 00:05:56]} {[%emt
00:00:20]} 52. Qa8+ {[%clk 00:19:36]} {[%emt 00:00:12]} Kh7 {[%clk 00:06:20]}
{[%emt 00:00:07]} 53. Qxa5 {[%clk 00:20:00]} {[%emt 00:00:05]} Nd3 {[%clk
00:05:49]} {[%emt 00:01:01]} 54. Qb5 {[%clk 00:19:50]} {[%emt 00:00:40]} Qxb3
{[%clk 00:06:08]} {[%emt 00:00:12]} 55. a5 {[%clk 00:20:15]} {[%emt 00:00:05]}
Qd5 {[%clk 00:01:45]} {[%emt 00:04:53]} 56. Qxd5 {[%clk 00:19:26]} {[%emt
00:01:19]} exd5 {[%clk 00:02:13]} 57. a6 {[%clk 00:19:53]} {[%emt 00:00:03]} b3
{[%clk 00:02:38]} {[%emt 00:00:06]} 58. a7 {[%clk 00:20:18]} {[%emt 00:00:05]}
b2 {[%clk 00:03:06]} {[%emt 00:00:02]} 59. a8=Q {[%clk 00:20:42]} {[%emt
00:00:05]} b1=Q {[%clk 00:03:32]} {[%emt 00:00:04]} 60. Qxd5 {[%clk 00:20:50]}
{[%emt 00:00:22]} Qf1 {[%clk 00:03:38]} {[%emt 00:00:24]} 61. e6 {[%clk
00:19:19]} {[%emt 00:02:00]} fxe6 {[%clk 00:04:00]} {[%emt 00:00:09]} 62. Qxe6
{[%clk 00:19:38]} {[%emt 00:00:11]} Qf6 {[%clk 00:03:07]} {[%emt 00:01:23]} 63.
Qe2 {[%clk 00:19:10]} {[%emt 00:00:57]} Qf5 {[%clk 00:03:24]} {[%emt 00:00:14]}
64. Qe3 {[%clk 00:19:12]} {[%emt 00:00:28]} Nc5 {[%clk 00:03:04]} {[%emt
00:00:51]} 65. Qe5 {[%clk 00:17:55]} {[%emt 00:01:47]} Qxe5 {[%clk 00:03:27]}
{[%emt 00:00:07]} 66. Bxe5 {[%clk 00:18:23]} Nd3 {[%clk 00:02:12]} {[%emt
00:01:45]} 67. Bd6 {[%clk 00:18:25]} {[%emt 00:00:27]} Nf2 {[%clk 00:02:32]}
{[%emt 00:00:11]} 68. Ba3 {[%clk 00:18:39]} {[%emt 00:00:16]} Ne4 {[%clk
00:00:52]} {[%emt 00:02:10]} 69. Bc1 {[%clk 00:18:32]} {[%emt 00:00:37]} Kg6
{[%clk 00:00:51]} {[%emt 00:00:31]} 70. g4 {[%clk 00:18:31]} {[%emt 00:00:31]}
Nc3 {[%clk 00:00:50]} {[%emt 00:00:32]} 71. h5+ {[%clk 00:18:27]} {[%emt
00:00:34]} Kh7 {[%clk 00:01:12]} {[%emt 00:00:08]} 72. Bb2 {[%clk 00:18:47]}
{[%emt 00:00:10]} Ne4 {[%clk 00:01:12]} {[%emt 00:00:29]} 73. Kh3 {[%clk
00:18:57]} {[%emt 00:00:20]} g6 {[%clk 00:01:27]} {[%emt 00:00:16]} 1/2-1/2

[Event "South Island Championships 2023"]
[Site "Oamaru, New Zealand"]
[Date "2023.09.27"]
[Round "2.4"]
[White "Cummings, Nick"]
[Black "Williams, Matt"]
[Result "1/2-1/2"]
[TimeControl "90 + 30"]
[WhiteFideId "4301218"]
[BlackFideId "4319575"]
[WhiteElo "2094"]
[BlackElo "1828"]

1. d4 {[%clk 01:30:42]} {[%emt 00:00:17]} d5 {[%clk 01:30:36]} {[%emt
00:00:25]} 2. Nf3 {[%clk 01:30:44]} {[%emt 00:00:28]} Nf6 {[%clk 01:30:48]}
{[%emt 00:00:17]} 3. e3 {[%clk 01:29:41]} {[%emt 00:01:34]} Bg4 {[%clk
01:30:27]} {[%emt 00:00:51]} 4. c4 {[%clk 01:29:42]} {[%emt 00:00:27]} e6
{[%clk 01:30:06]} {[%emt 00:00:52]} 5. Qb3 {[%clk 01:29:46]} {[%emt 00:00:26]}
Bxf3 {[%clk 01:29:24]} {[%emt 00:01:13]} 6. gxf3 {[%clk 01:18:29]} {[%emt
00:11:47]} b6 {[%clk 01:20:41]} {[%emt 00:09:14]} 7. Nc3 {[%clk 01:16:08]}
{[%emt 00:02:50]} c6 {[%clk 01:18:26]} {[%emt 00:02:46]} 8. Bd2 {[%clk
01:10:26]} {[%emt 00:06:11]} Be7 {[%clk 01:14:07]} {[%emt 00:04:49]} 9. Bd3
{[%clk 01:09:56]} {[%emt 00:00:59]} Nbd7 {[%clk 01:10:42]} {[%emt 00:03:56]} 10.
O-O {[%clk 01:05:40]} {[%emt 00:04:46]} O-O {[%clk 01:09:10]} {[%emt 00:02:02]}
11. cxd5 {[%clk 00:58:28]} {[%emt 00:07:42]} exd5 {[%clk 01:06:06]} {[%emt
00:03:35]} 12. e4 {[%clk 00:52:58]} {[%emt 00:05:59]} c5 {[%clk 01:03:24]}
{[%emt 00:03:12]} 13. Nxd5 {[%clk 00:49:21]} {[%emt 00:04:07]} cxd4 {[%clk
00:58:38]} {[%emt 00:05:17]} 14. Nxe7+ {[%clk 00:47:12]} {[%emt 00:02:39]} Qxe7
{[%clk 00:58:45]} {[%emt 00:00:16]} 15. Bb4 {[%clk 00:39:14]} {[%emt 00:08:34]}
Nc5 {[%clk 00:56:05]} {[%emt 00:03:10]} 16. Qd1 {[%clk 00:36:29]} {[%emt
00:03:14]} 1/2-1/2